[Event "Late-Titled-Tuesday-Blitz-October-24-2023"]
[Site "Chess.com"]
[Date "2023.10.24"]
[Round "1"]
[White "kaanadayhamle"]
[Black "eljanov"]
[Result "0-1"]
[WhiteElo "2455"]
[BlackElo "2801"]
[TimeControl "180+1"]
[EndTime "14:08:50 PDT"]
[Termination "eljanov won by resignation"]

1. Nf3 {[%clk 0:02:56]} 1... d5 {[%clk 0:02:59.4]} 2. g3 {[%clk 0:02:55.6]} 2...
Nc6 {[%clk 0:02:58.2]} 3. d4 {[%clk 0:02:55.2]} 3... Bf5 {[%clk 0:02:57.3]} 4.
Bg2 {[%clk 0:02:54.8]} 4... Nb4 {[%clk 0:02:57.1]} 5. Na3 {[%clk 0:02:48.5]}
5... e6 {[%clk 0:02:56.8]} 6. c3 {[%clk 0:02:48.4]} 6... Nc6 {[%clk 0:02:56.1]}
7. Nc2 {[%clk 0:02:48.7]} 7... Nf6 {[%clk 0:02:53.6]} 8. O-O {[%clk 0:02:48.7]}
8... h6 {[%clk 0:02:51.5]} 9. Ne5 {[%clk 0:02:47.2]} 9... Nxe5 {[%clk 0:02:44]}
10. dxe5 {[%clk 0:02:48.1]} 10... Nd7 {[%clk 0:02:44.4]} 11. Nd4 {[%clk
0:02:44.3]} 11... Bh7 {[%clk 0:02:42.5]} 12. f4 {[%clk 0:02:38.8]} 12... c5
{[%clk 0:02:35.4]} 13. Nf3 {[%clk 0:02:34.5]} 13... Be7 {[%clk 0:02:33.1]} 14.
Kh1 {[%clk 0:02:34.1]} 14... O-O {[%clk 0:02:31.8]} 15. Be3 {[%clk 0:02:34.1]}
15... b5 {[%clk 0:02:12.3]} 16. Bf2 {[%clk 0:02:30.4]} 16... Be4 {[%clk
0:02:10.5]} 17. Qd2 {[%clk 0:02:21.6]} 17... a5 {[%clk 0:02:08.5]} 18. Rfd1
{[%clk 0:02:12]} 18... Qc7 {[%clk 0:02:02.9]} 19. Rac1 {[%clk 0:02:11.3]} 19...
Rfd8 {[%clk 0:02:01.7]} 20. a3 {[%clk 0:02:08]} 20... Nb6 {[%clk 0:01:58.9]} 21.
b3 {[%clk 0:02:00.3]} 21... a4 {[%clk 0:01:58.8]} 22. b4 {[%clk 0:02:00.3]}
22... Nc4 {[%clk 0:01:57.7]} 23. Qa2 {[%clk 0:02:00.4]} 23... Rac8 {[%clk
0:01:54.6]} 24. Nd2 {[%clk 0:01:57.6]} 24... Bxg2+ {[%clk 0:01:51.6]} 25. Kxg2
{[%clk 0:01:58.5]} 25... Qb7 {[%clk 0:01:42.8]} 26. bxc5 {[%clk 0:01:47.6]}
26... d4+ {[%clk 0:01:21]} 27. Nf3 {[%clk 0:01:46.1]} 27... Ne3+ {[%clk
0:01:09.1]} 28. Bxe3 {[%clk 0:01:46.1]} 28... dxe3 {[%clk 0:01:10]} 29. c4
{[%clk 0:01:29]} 29... Rxd1 {[%clk 0:01:07.3]} 30. Rxd1 {[%clk 0:01:29.3]} 30...
Rxc5 {[%clk 0:01:07.3]} 31. cxb5 {[%clk 0:01:29.4]} 31... Rxb5 {[%clk
0:01:07.6]} 32. Qc4 {[%clk 0:01:27.2]} 32... Rb2 {[%clk 0:00:58.8]} 33. Kf1
{[%clk 0:01:24.7]} 33... Qb5 {[%clk 0:00:46.5]} 34. Qxb5 {[%clk 0:01:11.4]}
34... Rxb5 {[%clk 0:00:47.4]} 35. Nd4 {[%clk 0:01:11.5]} 35... Rd5 {[%clk
0:00:39.5]} 36. Rd3 {[%clk 0:01:08]} 36... Bxa3 {[%clk 0:00:33.9]} 37. Rxa3
{[%clk 0:01:07.9]} 37... Rxd4 {[%clk 0:00:34.1]} 38. Rxe3 {[%clk 0:01:08.5]}
38... g5 {[%clk 0:00:17.7]} 39. fxg5 {[%clk 0:00:58.6]} 39... hxg5 {[%clk
0:00:18.6]} 40. Kf2 {[%clk 0:00:57]} 40... Rd5 {[%clk 0:00:13]} 41. Ra3 {[%clk
0:00:56.7]} 41... Ra5 {[%clk 0:00:13.3]} 42. Kf3 {[%clk 0:00:57.1]} 42... Kg7
{[%clk 0:00:13.6]} 43. e4 {[%clk 0:00:50.2]} 43... Kg6 {[%clk 0:00:12.7]} 44.
Kg4 {[%clk 0:00:50.3]} 44... Ra8 {[%clk 0:00:11.3]} 45. h3 {[%clk 0:00:48.2]}
45... Ra7 {[%clk 0:00:10.7]} 46. Kf3 {[%clk 0:00:45.6]} 46... Kh5 {[%clk
0:00:11]} 47. Ke3 {[%clk 0:00:41.3]} 47... Ra8 {[%clk 0:00:10.3]} 48. Kf3 {[%clk
0:00:41.5]} 48... Kg6 {[%clk 0:00:10]} 49. Kg4 {[%clk 0:00:41.6]} 49... Ra6
{[%clk 0:00:09.2]} 50. Kf3 {[%clk 0:00:41.9]} 50... Ra5 {[%clk 0:00:08.7]} 51.
Kg4 {[%clk 0:00:37.4]} 51... Kh6 {[%clk 0:00:08.4]} 52. Kf3 {[%clk 0:00:37.1]}
52... Kh5 {[%clk 0:00:08.5]} 53. Ke3 {[%clk 0:00:37.3]} 53... g4 {[%clk
0:00:07.5]} 54. h4 {[%clk 0:00:34.7]} 54... Ra8 {[%clk 0:00:07]} 55. Kf4 {[%clk
0:00:34.5]} 55... Ra7 {[%clk 0:00:07.4]} 56. Ke3 {[%clk 0:00:34.4]} 56... Ra6
{[%clk 0:00:06.2]} 57. Kf4 {[%clk 0:00:34.7]} 57... Ra5 {[%clk 0:00:06.4]} 58.
Ke3 {[%clk 0:00:34.2]} 58... Ra7 {[%clk 0:00:03.9]} 59. Kf4 {[%clk 0:00:34.3]}
59... Ra8 {[%clk 0:00:03.8]} 60. Ke3 {[%clk 0:00:33.6]} 60... Ra6 {[%clk
0:00:04.1]} 61. Kf4 {[%clk 0:00:33.9]} 61... Ra7 {[%clk 0:00:04.3]} 62. Ke3
{[%clk 0:00:34.3]} 62... f6 {[%clk 0:00:04.8]} 63. exf6 {[%clk 0:00:33.4]} 63...
e5 {[%clk 0:00:05]} 64. Kd3 {[%clk 0:00:32]} 64... Kg6 {[%clk 0:00:03.5]} 65.
Kc4 {[%clk 0:00:29.8]} 65... Kxf6 {[%clk 0:00:03.7]} 66. Kd5 {[%clk 0:00:25.8]}
66... Rd7+ {[%clk 0:00:02.7]} 67. Kc5 {[%clk 0:00:23.7]} 67... Rd4 {[%clk
0:00:02.9]} 68. Re3 {[%clk 0:00:23.7]} 68... Ke6 {[%clk 0:00:02.7]} 69. Kb5
{[%clk 0:00:23.8]} 69... Kd6 {[%clk 0:00:03]} 70. Ka5 {[%clk 0:00:14.1]} 70...
Kc5 {[%clk 0:00:03.2]} 71. Ra3 {[%clk 0:00:09.9]} 71... Rd8 {[%clk 0:00:02.3]}
72. Kxa4 {[%clk 0:00:09.3]} 72... Kc4 {[%clk 0:00:02.6]} 0-1

[Event "Late-Titled-Tuesday-Blitz-October-24-2023"]
[Site "Chess.com"]
[Date "2023.10.24"]
[Round "1"]
[White "Lady_Nika"]
[Black "Grischuk"]
[Result "0-1"]
[WhiteElo "2514"]
[BlackElo "2985"]
[TimeControl "180+1"]
[EndTime "14:09:24 PDT"]
[Termination "Grischuk won by resignation"]

1. e4 {[%clk 0:02:59.7]} 1... e6 {[%clk 0:02:56.5]} 2. d4 {[%clk 0:02:59.7]}
2... d5 {[%clk 0:02:57.2]} 3. exd5 {[%clk 0:03:00]} 3... exd5 {[%clk 0:02:57.4]}
4. Nf3 {[%clk 0:03:00.9]} 4... Nc6 {[%clk 0:02:55.9]} 5. c3 {[%clk 0:03:00.9]}
5... Bd6 {[%clk 0:02:55.2]} 6. Bd3 {[%clk 0:03:01.1]} 6... Nge7 {[%clk
0:02:55.8]} 7. O-O {[%clk 0:03:01.4]} 7... Bg4 {[%clk 0:02:55.6]} 8. Nbd2 {[%clk
0:03:01.7]} 8... Qd7 {[%clk 0:02:55.5]} 9. Qc2 {[%clk 0:03:02.1]} 9... O-O-O
{[%clk 0:02:50.4]} 10. b4 {[%clk 0:03:01.4]} 10... Ng6 {[%clk 0:02:48.4]} 11. h3
{[%clk 0:02:54.1]} 11... Be6 {[%clk 0:02:46.9]} 12. Ng5 {[%clk 0:02:48.2]} 12...
Nf4 {[%clk 0:02:33.5]} 13. Nxe6 {[%clk 0:02:47.6]} 13... fxe6 {[%clk 0:02:34.4]}
14. Nf3 {[%clk 0:02:47.8]} 14... Rdf8 {[%clk 0:02:30.1]} 15. Bxf4 {[%clk
0:02:46.2]} 15... Rxf4 {[%clk 0:02:31]} 16. Rae1 {[%clk 0:02:45.4]} 16... Kb8
{[%clk 0:02:22.4]} 17. b5 {[%clk 0:02:38.1]} 17... Nd8 {[%clk 0:02:00]} 18. Ne5
{[%clk 0:02:37.9]} 18... Bxe5 {[%clk 0:01:59.6]} 19. Rxe5 {[%clk 0:02:37.6]}
19... Nf7 {[%clk 0:01:57.6]} 20. Re3 {[%clk 0:02:37.7]} 20... g6 {[%clk
0:01:54.4]} 21. Rfe1 {[%clk 0:02:34.9]} 21... Re8 {[%clk 0:01:51.2]} 22. Qe2
{[%clk 0:02:33.1]} 22... Rf6 {[%clk 0:01:49.9]} 23. a4 {[%clk 0:02:30.8]} 23...
Nd6 {[%clk 0:01:39.5]} 24. Re5 {[%clk 0:02:26.2]} 24... Nf7 {[%clk 0:01:37.6]}
25. Re3 {[%clk 0:02:26.1]} 25... h6 {[%clk 0:01:33.1]} 26. Qg4 {[%clk
0:02:18.3]} 26... g5 {[%clk 0:01:30.7]} 27. c4 {[%clk 0:02:13.6]} 27... Rf4
{[%clk 0:01:16.9]} 28. Qh5 {[%clk 0:02:11.3]} 28... dxc4 {[%clk 0:01:01.7]} 29.
Bxc4 {[%clk 0:02:10.5]} 29... Rf6 {[%clk 0:01:01.9]} 30. Qg4 {[%clk 0:01:59.5]}
30... Nd8 {[%clk 0:00:58.8]} 31. d5 {[%clk 0:01:50]} 31... Rf4 {[%clk
0:00:57.7]} 32. Qe2 {[%clk 0:01:43.7]} 32... e5 {[%clk 0:00:54.7]} 33. Bb3
{[%clk 0:01:39.2]} 33... Nf7 {[%clk 0:00:51.4]} 34. Rc1 {[%clk 0:01:38.1]} 34...
e4 {[%clk 0:00:41.2]} 35. Rec3 {[%clk 0:01:33.6]} 35... Rc8 {[%clk 0:00:41.4]}
36. a5 {[%clk 0:01:30.8]} 36... Nd6 {[%clk 0:00:37.8]} 37. b6 {[%clk 0:01:29]}
37... cxb6 {[%clk 0:00:37.7]} 38. Rxc8+ {[%clk 0:01:26.9]} 38... Nxc8 {[%clk
0:00:38.6]} 39. axb6 {[%clk 0:01:24.4]} 39... Nxb6 {[%clk 0:00:37.4]} 40. g3
{[%clk 0:01:23.7]} 40... Rf8 {[%clk 0:00:32.8]} 41. Qxe4 {[%clk 0:01:21.9]}
41... Rd8 {[%clk 0:00:31.3]} 42. Qe5+ {[%clk 0:01:19.6]} 42... Qd6 {[%clk
0:00:31.7]} 43. Qg7 {[%clk 0:01:16.9]} 43... a6 {[%clk 0:00:29]} 44. Re1 {[%clk
0:01:05.4]} 44... Rd7 {[%clk 0:00:28.1]} 45. Qh8+ {[%clk 0:01:04.6]} 45... Rd8
{[%clk 0:00:27.5]} 46. Qg7 {[%clk 0:01:04.7]} 46... Rd7 {[%clk 0:00:23.7]} 47.
Qh8+ {[%clk 0:01:04.4]} 47... Ka7 {[%clk 0:00:21]} 48. Re8 {[%clk 0:01:03.1]}
48... Rf7 {[%clk 0:00:17.3]} 49. Re6 {[%clk 0:00:48.1]} 49... Qc5 {[%clk
0:00:16.6]} 50. Qb2 {[%clk 0:00:39.9]} 50... h5 {[%clk 0:00:09.3]} 51. Bd1
{[%clk 0:00:35.8]} 51... h4 {[%clk 0:00:08.2]} 52. gxh4 {[%clk 0:00:36.1]} 52...
gxh4 {[%clk 0:00:07.5]} 53. Bh5 {[%clk 0:00:33.8]} 53... Rd7 {[%clk 0:00:06.8]}
54. Bf3 {[%clk 0:00:33.3]} 54... Nxd5 {[%clk 0:00:06]} 55. Re5 {[%clk 0:00:27]}
55... Qc4 {[%clk 0:00:04.1]} 56. Re4 {[%clk 0:00:18.1]} 56... Qc3 {[%clk
0:00:04.1]} 57. Qe2 {[%clk 0:00:14.5]} 57... Rg7+ {[%clk 0:00:03.2]} 58. Bg4
{[%clk 0:00:12.9]} 58... Nb6 {[%clk 0:00:02.9]} 59. Re7 {[%clk 0:00:10.9]} 59...
Rxe7 {[%clk 0:00:02.9]} 60. Qxe7 {[%clk 0:00:10.7]} 60... Qc6 {[%clk 0:00:02.8]}
61. Qxh4 {[%clk 0:00:10.5]} 61... a5 {[%clk 0:00:03.1]} 62. Qe7 {[%clk
0:00:09.9]} 62... a4 {[%clk 0:00:03.6]} 63. h4 {[%clk 0:00:10]} 63... Qd5 {[%clk
0:00:03]} 64. h5 {[%clk 0:00:09.3]} 64... Nc4 {[%clk 0:00:03.2]} 65. Qb4 {[%clk
0:00:07.1]} 65... a3 {[%clk 0:00:03.1]} 66. Qa4+ {[%clk 0:00:06.9]} 66... Kb6
{[%clk 0:00:03.2]} 67. Qb4+ {[%clk 0:00:06.9]} 67... Kc7 {[%clk 0:00:03.5]} 68.
Qe7+ {[%clk 0:00:05.6]} 68... Kb6 {[%clk 0:00:03.7]} 69. Be6 {[%clk 0:00:05.8]}
69... Qc5 {[%clk 0:00:02.6]} 70. Qd8+ {[%clk 0:00:05.4]} 70... Kb5 {[%clk
0:00:02.6]} 71. Bxc4+ {[%clk 0:00:05.2]} 71... Kxc4 {[%clk 0:00:02.6]} 72. Qg8+
{[%clk 0:00:04.7]} 72... Kb4 {[%clk 0:00:02.8]} 73. h6 {[%clk 0:00:04.4]} 73...
Qc1+ {[%clk 0:00:03]} 74. Kg2 {[%clk 0:00:03.9]} 74... Qxh6 {[%clk 0:00:03.9]}
75. Qg4+ {[%clk 0:00:04]} 75... Kb3 {[%clk 0:00:03.7]} 76. Qf3+ {[%clk
0:00:04.4]} 76... Ka2 {[%clk 0:00:03.5]} 77. Qxb7 {[%clk 0:00:04.6]} 77... Qg6+
{[%clk 0:00:03.3]} 78. Kf3 {[%clk 0:00:04.1]} 78... Qf5+ {[%clk 0:00:03.5]} 79.
Ke2 {[%clk 0:00:04]} 79... Qc2+ {[%clk 0:00:03.5]} 80. Kf3 {[%clk 0:00:04.2]}
80... Qb3+ {[%clk 0:00:03.9]} 81. Qxb3+ {[%clk 0:00:04.3]} 81... Kxb3 {[%clk
0:00:04.8]} 82. Kg4 {[%clk 0:00:05]} 82... a2 {[%clk 0:00:05.7]} 83. f4 {[%clk
0:00:05.9]} 83... a1=Q {[%clk 0:00:06.5]} 84. f5 {[%clk 0:00:06.5]} 84... Qg7+
{[%clk 0:00:06.7]} 0-1

[Event "Late-Titled-Tuesday-Blitz-October-24-2023"]
[Site "Chess.com"]
[Date "2023.10.24"]
[Round "1"]
[White "SergioMoralesG"]
[Black "Alexei_Gubajdullin"]
[Result "1/2-1/2"]
[WhiteElo "2415"]
[BlackElo "2713"]
[TimeControl "180+1"]
[EndTime "14:10:09 PDT"]
[Termination "Game drawn by 50-move rule"]

1. d4 {[%clk 0:03:00.9]} 1... Nf6 {[%clk 0:02:59.7]} 2. c4 {[%clk 0:03:01.3]}
2... g6 {[%clk 0:03:00.2]} 3. Nc3 {[%clk 0:03:00.6]} 3... Bg7 {[%clk 0:03:00.5]}
4. e4 {[%clk 0:03:01.1]} 4... d6 {[%clk 0:03:00.2]} 5. Nf3 {[%clk 0:03:01.6]}
5... O-O {[%clk 0:03:00.6]} 6. Be2 {[%clk 0:03:02.1]} 6... Na6 {[%clk 0:03:01]}
7. O-O {[%clk 0:02:59.5]} 7... e5 {[%clk 0:03:01.2]} 8. Be3 {[%clk 0:02:55.8]}
8... c6 {[%clk 0:03:01.2]} 9. d5 {[%clk 0:02:50.9]} 9... Ng4 {[%clk 0:03:00.8]}
10. Bg5 {[%clk 0:02:49.9]} 10... f6 {[%clk 0:03:00.9]} 11. Bh4 {[%clk 0:02:49]}
11... c5 {[%clk 0:03:00.4]} 12. Ne1 {[%clk 0:02:29.5]} 12... Nh6 {[%clk
0:03:00.1]} 13. Nd3 {[%clk 0:02:29.6]} 13... Nf7 {[%clk 0:02:59.5]} 14. a3
{[%clk 0:02:25.6]} 14... Bh6 {[%clk 0:02:58.9]} 15. b4 {[%clk 0:02:22.7]} 15...
b6 {[%clk 0:02:57.7]} 16. bxc5 {[%clk 0:02:13.3]} 16... dxc5 {[%clk 0:02:56.4]}
17. Bg4 {[%clk 0:01:42.6]} 17... Qe7 {[%clk 0:02:50.7]} 18. Bxc8 {[%clk
0:01:33.8]} 18... Rfxc8 {[%clk 0:02:47.1]} 19. Qg4 {[%clk 0:01:28.4]} 19... g5
{[%clk 0:02:18.4]} 20. Bg3 {[%clk 0:01:27.1]} 20... Nd6 {[%clk 0:02:18.2]} 21.
h4 {[%clk 0:01:14.7]} 21... Kh8 {[%clk 0:02:14.8]} 22. hxg5 {[%clk 0:01:11.5]}
22... Bxg5 {[%clk 0:02:14.4]} 23. f4 {[%clk 0:01:05.7]} 23... exf4 {[%clk
0:02:13.8]} 24. Bxf4 {[%clk 0:01:05.6]} 24... Rg8 {[%clk 0:02:10.9]} 25. e5
{[%clk 0:00:53.8]} 25... Bxf4 {[%clk 0:01:24.3]} 26. Qxf4 {[%clk 0:00:53.6]}
26... Qg7 {[%clk 0:01:16.5]} 27. Rf2 {[%clk 0:00:50.4]} 27... fxe5 {[%clk
0:01:16]} 28. Qxe5 {[%clk 0:00:29]} 28... Nxc4 {[%clk 0:01:13.6]} 29. Qxg7+
{[%clk 0:00:24.3]} 29... Rxg7 {[%clk 0:01:13.4]} 30. Ne4 {[%clk 0:00:19.6]}
30... Ne3 {[%clk 0:01:05.8]} 31. Re1 {[%clk 0:00:17.9]} 31... Nxd5 {[%clk
0:01:03.2]} 32. Ne5 {[%clk 0:00:16.6]} 32... h6 {[%clk 0:00:52.3]} 33. Rd1
{[%clk 0:00:10.6]} 33... Nac7 {[%clk 0:00:51.3]} 34. Nf6 {[%clk 0:00:08.4]}
34... Nxf6 {[%clk 0:00:49.5]} 35. Rxf6 {[%clk 0:00:09.3]} 35... Kg8 {[%clk
0:00:34.4]} 36. Rxh6 {[%clk 0:00:08.4]} 36... Re8 {[%clk 0:00:34.2]} 37. Nf3
{[%clk 0:00:07.7]} 37... Re2 {[%clk 0:00:31.7]} 38. Rd8+ {[%clk 0:00:07.7]}
38... Ne8 {[%clk 0:00:31]} 39. Nh4 {[%clk 0:00:05.9]} 39... Kf7 {[%clk
0:00:29.6]} 40. Rc6 {[%clk 0:00:05.9]} 40... Ke7 {[%clk 0:00:29.2]} 41. Ra8
{[%clk 0:00:05.4]} 41... Kf8 {[%clk 0:00:26.5]} 42. Rcc8 {[%clk 0:00:05.1]}
42... Rg4 {[%clk 0:00:24.7]} 43. Kf1 {[%clk 0:00:03.2]} 43... Re7 {[%clk
0:00:21.9]} 44. Nf3 {[%clk 0:00:03.4]} 44... c4 {[%clk 0:00:22.1]} 45. Rd8
{[%clk 0:00:01.3]} 45... b5 {[%clk 0:00:22]} 46. Rac8 {[%clk 0:00:02.2]} 46...
a5 {[%clk 0:00:21.7]} 47. Kf2 {[%clk 0:00:02.5]} 47... b4 {[%clk 0:00:21.7]} 48.
axb4 {[%clk 0:00:02.7]} 48... axb4 {[%clk 0:00:21.9]} 49. Rd4 {[%clk 0:00:02.8]}
49... Rxd4 {[%clk 0:00:21.1]} 50. Nxd4 {[%clk 0:00:03.7]} 50... c3 {[%clk
0:00:20.4]} 51. Nc2 {[%clk 0:00:03.9]} 51... b3 {[%clk 0:00:17.7]} 52. Rxc3
{[%clk 0:00:02.8]} 52... bxc2 {[%clk 0:00:16.8]} 53. Rxc2 {[%clk 0:00:03.7]}
53... Nd6 {[%clk 0:00:16.9]} 54. Kg1 {[%clk 0:00:03.7]} 54... Kf7 {[%clk
0:00:16.7]} 55. Rf2+ {[%clk 0:00:03.6]} 55... Kg6 {[%clk 0:00:16.7]} 56. g3
{[%clk 0:00:04.5]} 56... Nf5 {[%clk 0:00:16.5]} 57. Kg2 {[%clk 0:00:04]} 57...
Re3 {[%clk 0:00:16.5]} 58. Rf4 {[%clk 0:00:03.6]} 58... Rxg3+ {[%clk 0:00:15.6]}
59. Kf2 {[%clk 0:00:04.2]} 59... Rb3 {[%clk 0:00:15.4]} 60. Rg4+ {[%clk
0:00:04.4]} 60... Kf6 {[%clk 0:00:15.5]} 61. Rg8 {[%clk 0:00:05]} 61... Ke5
{[%clk 0:00:15.9]} 62. Re8+ {[%clk 0:00:04.9]} 62... Kf4 {[%clk 0:00:16.2]} 63.
Rf8 {[%clk 0:00:05.6]} 63... Rb2+ {[%clk 0:00:16.3]} 64. Ke1 {[%clk 0:00:06.2]}
64... Ke4 {[%clk 0:00:16.6]} 65. Re8+ {[%clk 0:00:06.3]} 65... Kd3 {[%clk
0:00:16.8]} 66. Rd8+ {[%clk 0:00:06.6]} 66... Nd4 {[%clk 0:00:16.9]} 67. Kf1
{[%clk 0:00:07.1]} 67... Ke3 {[%clk 0:00:17]} 68. Re8+ {[%clk 0:00:07.3]} 68...
Kf4 {[%clk 0:00:17.2]} 69. Rf8+ {[%clk 0:00:07.8]} 69... Nf5 {[%clk 0:00:17.5]}
70. Rf7 {[%clk 0:00:06.7]} 70... Ke4 {[%clk 0:00:16.2]} 71. Rf8 {[%clk
0:00:05.8]} 71... Rc2 {[%clk 0:00:15.1]} 72. Re8+ {[%clk 0:00:05.4]} 72... Kf3
{[%clk 0:00:14.7]} 73. Ke1 {[%clk 0:00:05]} 73... Ne3 {[%clk 0:00:14.4]} 74.
Rf8+ {[%clk 0:00:05]} 74... Ke4 {[%clk 0:00:14.5]} 75. Re8+ {[%clk 0:00:05.5]}
75... Kd4 {[%clk 0:00:14.6]} 76. Rd8+ {[%clk 0:00:05.8]} 76... Nd5 {[%clk
0:00:14.7]} 77. Kf1 {[%clk 0:00:05.6]} 77... Ke4 {[%clk 0:00:13.5]} 78. Re8+
{[%clk 0:00:05.8]} 78... Kf3 {[%clk 0:00:13.7]} 79. Rf8+ {[%clk 0:00:06.2]}
79... Nf4 {[%clk 0:00:13.6]} 80. Ke1 {[%clk 0:00:06.2]} 80... Rc4 {[%clk
0:00:13.3]} 81. Kd1 {[%clk 0:00:05.5]} 81... Ke4 {[%clk 0:00:12.5]} 82. Re8+
{[%clk 0:00:05.8]} 82... Kd4 {[%clk 0:00:12.8]} 83. Rd8+ {[%clk 0:00:06.2]}
83... Nd5 {[%clk 0:00:11.4]} 84. Ke1 {[%clk 0:00:05.5]} 84... Ke3 {[%clk
0:00:10.8]} 85. Re8+ {[%clk 0:00:05]} 85... Kf3 {[%clk 0:00:11]} 86. Rf8+ {[%clk
0:00:05.1]} 86... Nf4 {[%clk 0:00:11.4]} 87. Kd2 {[%clk 0:00:05.6]} 87... Ke4
{[%clk 0:00:11.4]} 88. Re8+ {[%clk 0:00:05.6]} 88... Kd4 {[%clk 0:00:11.2]} 89.
Rd8+ {[%clk 0:00:05.9]} 89... Nd5 {[%clk 0:00:10.5]} 90. Ke2 {[%clk 0:00:06.2]}
90... Rc3 {[%clk 0:00:10.2]} 91. Kd2 {[%clk 0:00:06]} 91... Rg3 {[%clk
0:00:09.6]} 92. Ke2 {[%clk 0:00:06]} 92... Rg6 {[%clk 0:00:08.4]} 93. Kf3 {[%clk
0:00:05.4]} 93... Ke5 {[%clk 0:00:08.6]} 94. Re8+ {[%clk 0:00:05.5]} 94... Kd4
{[%clk 0:00:08.4]} 95. Rd8 {[%clk 0:00:06]} 95... Rf6+ {[%clk 0:00:08.8]} 96.
Ke2 {[%clk 0:00:05.7]} 96... Ke4 {[%clk 0:00:08.6]} 97. Re8+ {[%clk 0:00:06]}
97... Kd4 {[%clk 0:00:09]} 98. Rd8 {[%clk 0:00:06.2]} 98... Re6+ {[%clk
0:00:09.4]} 99. Kf3 {[%clk 0:00:05.9]} 99... Ke5 {[%clk 0:00:09.9]} 100. Kf2
{[%clk 0:00:04.6]} 100... Ne7 {[%clk 0:00:10.1]} 101. Ra8 {[%clk 0:00:04.2]}
101... Nf5 {[%clk 0:00:11]} 102. Ra5+ {[%clk 0:00:04]} 102... Ke4 {[%clk
0:00:11.9]} 103. Ra4+ {[%clk 0:00:04.5]} 103... Nd4 {[%clk 0:00:11.9]} 104. Kg2
{[%clk 0:00:03.4]} 104... Rf6 {[%clk 0:00:12]} 105. Rb4 {[%clk 0:00:03.8]}
105... Kd3 {[%clk 0:00:12]} 106. Ra4 {[%clk 0:00:03.5]} 106... Nb3 {[%clk
0:00:11.8]} 107. Ra3 {[%clk 0:00:03.9]} 107... Rb6 {[%clk 0:00:10.8]} 108. Kg3
{[%clk 0:00:04.3]} 108... Ke4 {[%clk 0:00:10.8]} 1/2-1/2